{"text_format":"1","workbook":"xlsx","n_sheets":3,"sheets":["Produktionsanlæg","Distributionsanlæg","Fællesfunktionsanlæg"],"not_rendered":{"charts":0,"images":0,"macros":1,"external_links":0,"defined_names":2,"comments":0,"pivot_tables":0},"unopened":[],"bounds":{"document_bytes":16777216,"sheet_cells":100000,"rows_first":2000,"rows_last":500,"rows_between":2000,"halvings":0,"cell_chars":16384,"cell_head_chars":4096},"cells_cut":0,"cells_raw":0,"read":"whole","date_system":"1900"}

{"sheet":"Produktionsanlæg","index":0,"n_rows":554,"n_cols":9,"rows_kept":554,"cut":false,"hidden":false,"merged":[[0,0,1,0],[0,1,1,1],[0,2,1,2],[0,3,1,3],[0,8,1,8],[0,4,1,4],[0,5,1,5],[0,6,1,6],[0,7,1,7]]}
["Produktionsanlæg","Enhed","Standard-levetid","Samlet mængde per 31/12-2022","Samlet mængde per 31/12-2023","Samlet mængde per 31/12-2024","Afvigelse 2022-2023","Afvigelse 2023-2024","Bemærkninger"]
[]
["Renseanlæg 1",null,null,null,null,null,{"$f":"IF(D3=\"\",IF(E3>0,\"Ny data\",IF(E3=\"\",\"\",0)),IF(D3=0,IF(E3=0,0,\"Ny data\"),(E3-D3)/D3))","v":""},{"$f":"IF(E3=\"\",IF(F3>0,\"Ny data\",IF(F3=\"\",\"\",0)),IF(E3=0,IF(F3=0,0,\"Ny data\"),(F3-E3)/E3))","v":""}]
["Mindre renseanlæg",null,null,null,null,null,"",""]
["Mindre renseanlæg < 5.000 PE","PE",40,4950,4950,4950,0,0]
["Mindre renseanlæg < 5.000 PE","PE",40,0,5,5,{"$f":"IF(D6=\"\",IF(E6>0,\"Ny data\",IF(E6=\"\",\"\",0)),IF(D6=0,IF(E6=0,0,\"Ny data\"),(E6-D6)/D6))","v":"Ny data"},{"$f":"IF(E6=\"\",IF(F6>0,\"Ny data\",IF(F6=\"\",\"\",0)),IF(E6=0,IF(F6=0,0,\"Ny data\"),(F6-E6)/E6))","v":0},"mini renseanlæg aldrig indberettet"]
["Mindre renseanlæg < 5.000 PE","PE",40,0,5,5,"Ny data",0,"mini renseanlæg aldrig indberettet"]
["Renseanlæg >= 5.000 PE, Vandbehandling",null,null,null,null,null,"",""]
["Indløb med riste, Konstruktioner","PE",60,0,null,null,0,""]
["Indløb med riste, Mek/EL","PE",20,0,null,null,0,""]
["Indløb med riste, SRO","PE",10,0,null,null,0,""]
["Sand- og fedtfang, Kontruktioner","PE",60,0,null,null,0,""]
["Sand- og fedtfang, Mek/EL","PE",20,0,null,null,0,""]
["Sand- og fedtfang, SRO","PE",10,0,null,null,0,""]
["Forklaring, Konstruktioner","PE",60,0,null,null,0,""]
["Forklaring, Mek/EL","PE",20,0,null,null,0,""]
["Forklaring, SRO","PE",10,0,null,null,0,""]
["Beluftningstanke, Konstruktioner","PE",60,0,null,null,0,""]
["Beluftningstanke, Mek/EL","PE",20,0,null,null,0,""]
["Beluftningstanke, SRO","PE",10,0,null,null,0,""]
["Efterklaringstanke, Konstruktioner","PE",60,0,null,null,0,""]
["Efterklaringstanke, Mek/El","PE",20,0,null,null,0,""]
["Efterklaringstanke, SRO","PE",10,0,null,null,0,""]
["Efterbehandlingsanlæg (sandfilter), Konstruktioner","PE",60,0,null,null,0,""]
["Efterbehandlingsanlæg (sandfilter), Mek/EL","PE",20,0,null,null,0,""]
["Efterbehandlingsanlæg (sandfilter), SRO","PE",10,0,null,null,0,""]
["Renseanlæg >= 5.000 PE, Slambehandling",null,null,null,null,null,"",""]
["Forafvanding, slam, Konstruktion","PE",60,0,null,null,0,""]
["Forafvanding, slam, Mek/EL","PE",20,0,null,null,0,""]
["Forafvanding, slam, SRO","PE",10,0,null,null,0,""]
["Rådnetanke, slam, Konstruktioner","PE",60,0,null,null,0,""]
["Rådnetanke, slam, Mek/EL","PE",20,0,null,null,0,""]
["Rådnetanke, slam, SRO","PE",10,0,null,null,0,""]
["Gasdisponering, Konstruktioner","PE",60,0,null,null,0,""]
["Gasdisponering, Mek/EL","PE",20,0,null,null,0,""]
["Gasdisponering, SRO","PE",10,0,null,null,0,""]
["Gasdisponering - elproduktionsanlæg, Konstruktioner","PE",60,0,null,null,0,""]
["Gasdisponering - elproduktionsanlæg, Mek/EL","PE",20,0,null,null,0,""]
["Gasdisponering - elproduktionsanlæg, SRO","PE",10,0,null,null,0,""]
["Gasrensning - Aktivt kulfilter","m3/t",15,0,null,null,0,""]
["Gasrensning - Biologisk skrubber","m3/t",15,0,null,null,0,""]
["Opgraderingsanlæg - Membran","m3/t",15,0,null,null,0,""]
["Varmeproduktionsanlæg","m3/t",15,0,null,null,0,""]
["Slutafvanding, slam - lavteknologisk (slambede), Konstruktioner","PE",60,0,null,null,0,""]
["Slutafvanding, slam - lavteknologisk (slambede), Mek/EL","PE",20,0,null,null,0,""]
["Slutafvanding, slam - lavteknologisk (slambede), SRO","PE",10,0,null,null,0,""]
["Slutafvanding, slam - højteknologisk (centrifuger), Konstruktioner","PE",60,0,null,null,0,""]
["Slutafvanding, slam - højteknologisk (centrifuger), Mek/El","PE",20,0,null,null,0,""]
["Slutafvanding, slam - højteknologisk (centrifuger), SRO","PE",10,0,null,null,0,""]
["Renseanlæg >= 5.000 PE, Slamdisponering",null,null,null,null,null,"",""]
["Slutdisponering, slam - lavteknologisk (slammineralisering), Konstruktioner","PE",60,0,null,null,0,""]
["Slutdisponering, slam - lavteknologisk (slammineralisering), Mek/EL","PE",20,0,null,null,0,""]
["Slutdisponering, slam - lavteknologisk (slammineralisering), SRO","PE",10,0,null,null,0,""]
["Slutdisponering, slam - højteknologisk (slamtørring), Konstruktioner","PE",60,0,null,null,0,""]
["Slutdisponering, slam - højteknologisk (slamtørring), Mek/EL","PE",20,0,null,null,0,""]
["Slutdisponering, slam - højteknologisk (slamtørring), SRO","PE",10,0,null,null,0,""]
["Slutdisponering, slam - højteknologisk (slamtørring og -forbrænding), Konstruktioner","PE",60,0,null,null,0,""]
["Slutdisponering, slam - højteknologisk (slamtørring og -forbrænding), Mek/EL","PE",20,0,null,null,0,""]
["Slutdisponering, slam - højteknologisk (slamtørring og -forbrænding), SRO","PE",10,0,null,null,0,""]
["Renseanlæg 2",null,null,null,null,null,"",""]
["Mindre renseanlæg",null,null,null,null,null,"",""]
["Mindre renseanlæg < 5.000 PE","PE",40,4000,4000,4000,0,0]
["Renseanlæg >= 5.000 PE, Vandbehandling",null,null,null,null,null,"",""]
["Indløb med riste, Konstruktioner","PE",60,0,null,null,0,""]
["Indløb med riste, Mek/EL","PE",20,0,null,null,0,""]
["Indløb med riste, SRO","PE",10,0,null,null,0,""]
["Sand- og fedtfang, Kontruktioner","PE",60,0,null,null,0,""]
["Sand- og fedtfang, Mek/EL","PE",20,0,null,null,0,""]
["Sand- og fedtfang, SRO","PE",10,0,null,null,{"$f":"IF(D69=\"\",IF(E69>0,\"Ny data\",IF(E69=\"\",\"\",0)),IF(D69=0,IF(E69=0,0,\"Ny data\"),(E69-D69)/D69))","v":0},{"$f":"IF(E69=\"\",IF(F69>0,\"Ny data\",IF(F69=\"\",\"\",0)),IF(E69=0,IF(F69=0,0,\"Ny data\"),(F69-E69)/E69))","v":""}]
["Forklaring, Konstruktioner","PE",60,0,null,null,0,""]
["Forklaring, Mek/EL","PE",20,0,null,null,0,""]
["Forklaring, SRO","PE",10,0,null,null,0,""]
["Beluftningstanke, Konstruktioner","PE",60,0,null,null,0,""]
["Beluftningstanke, Mek/EL","PE",20,0,null,null,0,""]
["Beluftningstanke, SRO","PE",10,0,null,null,0,""]
["Efterklaringstanke, Konstruktioner","PE",60,0,null,null,0,""]
["Efterklaringstanke, Mek/El","PE",20,0,null,null,0,""]
["Efterklaringstanke, SRO","PE",10,0,null,null,0,""]
["Efterbehandlingsanlæg (sandfilter), Konstruktioner","PE",60,0,null,null,0,""]
["Efterbehandlingsanlæg (sandfilter), Mek/EL","PE",20,0,null,null,0,""]
["Efterbehandlingsanlæg (sandfilter), SRO","PE",10,0,null,null,0,""]
["Renseanlæg >= 5.000 PE, Slambehandling",null,null,null,null,null,"",""]
["Forafvanding, slam, Konstruktion","PE",60,0,null,null,0,""]
["Forafvanding, slam, Mek/EL","PE",20,0,null,null,0,""]
["Forafvanding, slam, SRO","PE",10,0,null,null,0,""]
["Rådnetanke, slam, Konstruktioner","PE",60,0,null,null,0,""]
["Rådnetanke, slam, Mek/EL","PE",20,0,null,null,0,""]
["Rådnetanke, slam, SRO","PE",10,0,null,null,0,""]
["Gasdisponering, Konstruktioner","PE",60,0,null,null,0,""]
["Gasdisponering, Mek/EL","PE",20,0,null,null,0,""]
["Gasdisponering, SRO","PE",10,0,null,null,0,""]
["Gasdisponering - elproduktionsanlæg, Konstruktioner","PE",60,0,null,null,0,""]
["Gasdisponering - elproduktionsanlæg, Mek/EL","PE",20,0,null,null,0,""]
["Gasdisponering - elproduktionsanlæg, SRO","PE",10,0,null,null,0,""]
["Gasrensning - Aktivt kulfilter","m3/t",15,0,null,null,0,""]
["Gasrensning - Biologisk skrubber","m3/t",15,0,null,null,0,""]
["Opgraderingsanlæg - Membran","m3/t",15,0,null,null,0,""]
["Varmeproduktionsanlæg","m3/t",15,0,null,null,0,""]
["Slutafvanding, slam - lavteknologisk (slambede), Konstruktioner","PE",60,0,null,null,0,""]
["Slutafvanding, slam - lavteknologisk (slambede), Mek/EL","PE",20,0,null,null,0,""]
["Slutafvanding, slam - lavteknologisk (slambede), SRO","PE",10,0,null,null,0,""]
["Slutafvanding, slam - højteknologisk (centrifuger), Konstruktioner","PE",60,0,null,null,0,""]
["Slutafvanding, slam - højteknologisk (centrifuger), Mek/El","PE",20,0,null,null,0,""]
["Slutafvanding, slam - højteknologisk (centrifuger), SRO","PE",10,0,null,null,0,""]
["Renseanlæg >= 5.000 PE, Slamdisponering",null,null,null,null,null,"",""]
["Slutdisponering, slam - lavteknologisk (slammineralisering), Konstruktioner","PE",60,0,null,null,0,""]
["Slutdisponering, slam - lavteknologisk (slammineralisering), Mek/EL","PE",20,0,null,null,0,""]
["Slutdisponering, slam - lavteknologisk (slammineralisering), SRO","PE",10,0,null,null,0,""]
["Slutdisponering, slam - højteknologisk (slamtørring), Konstruktioner","PE",60,0,null,null,0,""]
["Slutdisponering, slam - højteknologisk (slamtørring), Mek/EL","PE",20,0,null,null,0,""]
["Slutdisponering, slam - højteknologisk (slamtørring), SRO","PE",10,0,null,null,0,""]
["Slutdisponering, slam - højteknologisk (slamtørring og -forbrænding), Konstruktioner","PE",60,0,null,null,0,""]
["Slutdisponering, slam - højteknologisk (slamtørring og -forbrænding), Mek/EL","PE",20,0,null,null,0,""]
["Slutdisponering, slam - højteknologisk (slamtørring og -forbrænding), SRO","PE",10,0,null,null,0,""]
["Renseanlæg 3",null,null,null,null,null,"",""]
["Mindre renseanlæg",null,null,null,null,null,"",""]
["Mindre renseanlæg < 5.000 PE","PE",40,0,5,5,"Ny data",0,"mini renseanlæg aldrig indberettet"]
["Renseanlæg >= 5.000 PE, Vandbehandling",null,null,null,null,null,"",""]
["Indløb med riste, Konstruktioner","PE",60,0,null,null,0,""]
["Indløb med riste, Mek/EL","PE",20,0,null,null,0,""]
["Indløb med riste, SRO","PE",10,0,null,null,0,""]
["Sand- og fedtfang, Kontruktioner","PE",60,0,null,null,0,""]
["Sand- og fedtfang, Mek/EL","PE",20,0,null,null,0,""]
["Sand- og fedtfang, SRO","PE",10,0,null,null,0,""]
["Forklaring, Konstruktioner","PE",60,0,null,null,0,""]
["Forklaring, Mek/EL","PE",20,0,null,null,0,""]
["Forklaring, SRO","PE",10,0,null,null,0,""]
["Beluftningstanke, Konstruktioner","PE",60,0,null,null,0,""]
["Beluftningstanke, Mek/EL","PE",20,0,null,null,0,""]
["Beluftningstanke, SRO","PE",10,0,null,null,0,""]
["Efterklaringstanke, Konstruktioner","PE",60,0,null,null,0,""]
["Efterklaringstanke, Mek/El","PE",20,0,null,null,0,""]
["Efterklaringstanke, SRO","PE",10,0,null,null,{"$f":"IF(D133=\"\",IF(E133>0,\"Ny data\",IF(E133=\"\",\"\",0)),IF(D133=0,IF(E133=0,0,\"Ny data\"),(E133-D133)/D133))","v":0},{"$f":"IF(E133=\"\",IF(F133>0,\"Ny data\",IF(F133=\"\",\"\",0)),IF(E133=0,IF(F133=0,0,\"Ny data\"),(F133-E133)/E133))","v":""}]
["Efterbehandlingsanlæg (sandfilter), Konstruktioner","PE",60,0,null,null,0,""]
["Efterbehandlingsanlæg (sandfilter), Mek/EL","PE",20,0,null,null,0,""]
["Efterbehandlingsanlæg (sandfilter), SRO","PE",10,0,null,null,0,""]
["Renseanlæg >= 5.000 PE, Slambehandling",null,null,null,null,null,"",""]
["Forafvanding, slam, Konstruktion","PE",60,0,null,null,0,""]
["Forafvanding, slam, Mek/EL","PE",20,0,null,null,0,""]
["Forafvanding, slam, SRO","PE",10,0,null,null,0,""]
["Rådnetanke, slam, Konstruktioner","PE",60,0,null,null,0,""]
["Rådnetanke, slam, Mek/EL","PE",20,0,null,null,0,""]
["Rådnetanke, slam, SRO","PE",10,0,null,null,0,""]
["Gasdisponering, Konstruktioner","PE",60,0,null,null,0,""]
["Gasdisponering, Mek/EL","PE",20,0,null,null,0,""]
["Gasdisponering, SRO","PE",10,0,null,null,0,""]
["Gasdisponering - elproduktionsanlæg, Konstruktioner","PE",60,0,null,null,0,""]
["Gasdisponering - elproduktionsanlæg, Mek/EL","PE",20,0,null,null,0,""]
["Gasdisponering - elproduktionsanlæg, SRO","PE",10,0,null,null,0,""]
["Gasrensning - Aktivt kulfilter","m3/t",15,0,null,null,0,""]
["Gasrensning - Biologisk skrubber","m3/t",15,0,null,null,0,""]
["Opgraderingsanlæg - Membran","m3/t",15,0,null,null,0,""]
["Varmeproduktionsanlæg","m3/t",15,0,null,null,0,""]
["Slutafvanding, slam - lavteknologisk (slambede), Konstruktioner","PE",60,0,null,null,0,""]
["Slutafvanding, slam - lavteknologisk (slambede), Mek/EL","PE",20,0,null,null,0,""]
["Slutafvanding, slam - lavteknologisk (slambede), SRO","PE",10,0,null,null,0,""]
["Slutafvanding, slam - højteknologisk (centrifuger), Konstruktioner","PE",60,0,null,null,0,""]
["Slutafvanding, slam - højteknologisk (centrifuger), Mek/El","PE",20,0,null,null,0,""]
["Slutafvanding, slam - højteknologisk (centrifuger), SRO","PE",10,0,null,null,0,""]
["Renseanlæg >= 5.000 PE, Slamdisponering",null,null,null,null,null,"",""]
["Slutdisponering, slam - lavteknologisk (slammineralisering), Konstruktioner","PE",60,0,null,null,0,""]
["Slutdisponering, slam - lavteknologisk (slammineralisering), Mek/EL","PE",20,0,null,null,0,""]
["Slutdisponering, slam - lavteknologisk (slammineralisering), SRO","PE",10,0,null,null,0,""]
["Slutdisponering, slam - højteknologisk (slamtørring), Konstruktioner","PE",60,0,null,null,0,""]
["Slutdisponering, slam - højteknologisk (slamtørring), Mek/EL","PE",20,0,null,null,0,""]
["Slutdisponering, slam - højteknologisk (slamtørring), SRO","PE",10,0,null,null,0,""]
["Slutdisponering, slam - højteknologisk (slamtørring og -forbrænding), Konstruktioner","PE",60,0,null,null,0,""]
["Slutdisponering, slam - højteknologisk (slamtørring og -forbrænding), Mek/EL","PE",20,0,null,null,0,""]
["Slutdisponering, slam - højteknologisk (slamtørring og -forbrænding), SRO","PE",10,0,null,null,0,""]
["Renseanlæg 4",null,null,null,null,null,"",""]
["Mindre renseanlæg",null,null,null,null,null,"",""]
["Mindre renseanlæg < 5.000 PE","PE",40,0,null,null,0,""]
["Renseanlæg >= 5.000 PE, Vandbehandling",null,null,null,null,null,"",""]
["Indløb med riste, Konstruktioner","PE",60,0,null,null,0,""]
["Indløb med riste, Mek/EL","PE",20,0,null,null,0,""]
["Indløb med riste, SRO","PE",10,0,null,null,0,""]
["Sand- og fedtfang, Kontruktioner","PE",60,0,null,null,0,""]
["Sand- og fedtfang, Mek/EL","PE",20,0,null,null,0,""]
["Sand- og fedtfang, SRO","PE",10,0,null,null,0,""]
["Forklaring, Konstruktioner","PE",60,0,null,null,0,""]
["Forklaring, Mek/EL","PE",20,0,null,null,0,""]
["Forklaring, SRO","PE",10,0,null,null,0,""]
["Beluftningstanke, Konstruktioner","PE",60,0,null,null,0,""]
["Beluftningstanke, Mek/EL","PE",20,0,null,null,0,""]
["Beluftningstanke, SRO","PE",10,0,null,null,0,""]
["Efterklaringstanke, Konstruktioner","PE",60,0,null,null,0,""]
["Efterklaringstanke, Mek/El","PE",20,0,null,null,0,""]
["Efterklaringstanke, SRO","PE",10,0,null,null,0,""]
["Efterbehandlingsanlæg (sandfilter), Konstruktioner","PE",60,0,null,null,0,""]
["Efterbehandlingsanlæg (sandfilter), Mek/EL","PE",20,0,null,null,0,""]
["Efterbehandlingsanlæg (sandfilter), SRO","PE",10,0,null,null,0,""]
["Renseanlæg >= 5.000 PE, Slambehandling",null,null,null,null,null,"",""]
["Forafvanding, slam, Konstruktion","PE",60,0,null,null,0,""]
["Forafvanding, slam, Mek/EL","PE",20,0,null,null,0,""]
["Forafvanding, slam, SRO","PE",10,0,null,null,0,""]
["Rådnetanke, slam, Konstruktioner","PE",60,0,null,null,0,""]
["Rådnetanke, slam, Mek/EL","PE",20,0,null,null,{"$f":"IF(D197=\"\",IF(E197>0,\"Ny data\",IF(E197=\"\",\"\",0)),IF(D197=0,IF(E197=0,0,\"Ny data\"),(E197-D197)/D197))","v":0},{"$f":"IF(E197=\"\",IF(F197>0,\"Ny data\",IF(F197=\"\",\"\",0)),IF(E197=0,IF(F197=0,0,\"Ny data\"),(F197-E197)/E197))","v":""}]
["Rådnetanke, slam, SRO","PE",10,0,null,null,0,""]
["Gasdisponering, Konstruktioner","PE",60,0,null,null,0,""]
["Gasdisponering, Mek/EL","PE",20,0,null,null,0,""]
["Gasdisponering, SRO","PE",10,0,null,null,0,""]
["Gasdisponering - elproduktionsanlæg, Konstruktioner","PE",60,0,null,null,0,""]
["Gasdisponering - elproduktionsanlæg, Mek/EL","PE",20,0,null,null,0,""]
["Gasdisponering - elproduktionsanlæg, SRO","PE",10,0,null,null,0,""]
["Gasrensning - Aktivt kulfilter","m3/t",15,0,null,null,0,""]
["Gasrensning - Biologisk skrubber","m3/t",15,0,null,null,0,""]
["Opgraderingsanlæg - Membran","m3/t",15,0,null,null,0,""]
["Varmeproduktionsanlæg","m3/t",15,0,null,null,0,""]
["Slutafvanding, slam - lavteknologisk (slambede), Konstruktioner","PE",60,0,null,null,0,""]
["Slutafvanding, slam - lavteknologisk (slambede), Mek/EL","PE",20,0,null,null,0,""]
["Slutafvanding, slam - lavteknologisk (slambede), SRO","PE",10,0,null,null,0,""]
["Slutafvanding, slam - højteknologisk (centrifuger), Konstruktioner","PE",60,0,null,null,0,""]
["Slutafvanding, slam - højteknologisk (centrifuger), Mek/El","PE",20,0,null,null,0,""]
["Slutafvanding, slam - højteknologisk (centrifuger), SRO","PE",10,0,null,null,0,""]
["Renseanlæg >= 5.000 PE, Slamdisponering",null,null,null,null,null,"",""]
["Slutdisponering, slam - lavteknologisk (slammineralisering), Konstruktioner","PE",60,0,null,null,0,""]
["Slutdisponering, slam - lavteknologisk (slammineralisering), Mek/EL","PE",20,0,null,null,0,""]
["Slutdisponering, slam - lavteknologisk (slammineralisering), SRO","PE",10,0,null,null,0,""]
["Slutdisponering, slam - højteknologisk (slamtørring), Konstruktioner","PE",60,0,null,null,0,""]
["Slutdisponering, slam - højteknologisk (slamtørring), Mek/EL","PE",20,0,null,null,0,""]
["Slutdisponering, slam - højteknologisk (slamtørring), SRO","PE",10,0,null,null,0,""]
["Slutdisponering, slam - højteknologisk (slamtørring og -forbrænding), Konstruktioner","PE",60,0,null,null,0,""]
["Slutdisponering, slam - højteknologisk (slamtørring og -forbrænding), Mek/EL","PE",20,0,null,null,0,""]
["Slutdisponering, slam - højteknologisk (slamtørring og -forbrænding), SRO","PE",10,0,null,null,0,""]
["Renseanlæg 5",null,null,null,null,null,"",""]
["Mindre renseanlæg",null,null,null,null,null,"",""]
["Mindre renseanlæg < 5.000 PE","PE",40,2450,2450,2450,0,0]
["Renseanlæg >= 5.000 PE, Vandbehandling",null,null,null,null,null,"",""]
["Indløb med riste, Konstruktioner","PE",60,0,null,null,0,""]
["Indløb med riste, Mek/EL","PE",20,0,null,null,0,""]
["Indløb med riste, SRO","PE",10,0,null,null,0,""]
["Sand- og fedtfang, Kontruktioner","PE",60,0,null,null,0,""]
["Sand- og fedtfang, Mek/EL","PE",20,0,null,null,0,""]
["Sand- og fedtfang, SRO","PE",10,0,null,null,0,""]
["Forklaring, Konstruktioner","PE",60,0,null,null,0,""]
["Forklaring, Mek/EL","PE",20,0,null,null,0,""]
["Forklaring, SRO","PE",10,0,null,null,0,""]
["Beluftningstanke, Konstruktioner","PE",60,0,null,null,0,""]
["Beluftningstanke, Mek/EL","PE",20,0,null,null,0,""]
["Beluftningstanke, SRO","PE",10,0,null,null,0,""]
["Efterklaringstanke, Konstruktioner","PE",60,0,null,null,0,""]
["Efterklaringstanke, Mek/El","PE",20,0,null,null,0,""]
["Efterklaringstanke, SRO","PE",10,0,null,null,0,""]
["Efterbehandlingsanlæg (sandfilter), Konstruktioner","PE",60,0,null,null,0,""]
["Efterbehandlingsanlæg (sandfilter), Mek/EL","PE",20,0,null,null,0,""]
["Efterbehandlingsanlæg (sandfilter), SRO","PE",10,0,null,null,0,""]
["Renseanlæg >= 5.000 PE, Slambehandling",null,null,null,null,null,"",""]
["Forafvanding, slam, Konstruktion","PE",60,0,null,null,0,""]
["Forafvanding, slam, Mek/EL","PE",20,0,null,null,0,""]
["Forafvanding, slam, SRO","PE",10,0,null,null,0,""]
["Rådnetanke, slam, Konstruktioner","PE",60,0,null,null,0,""]
["Rådnetanke, slam, Mek/EL","PE",20,0,null,null,0,""]
["Rådnetanke, slam, SRO","PE",10,0,null,null,0,""]
["Gasdisponering, Konstruktioner","PE",60,0,null,null,0,""]
["Gasdisponering, Mek/EL","PE",20,0,null,null,0,""]
["Gasdisponering, SRO","PE",10,0,null,null,0,""]
["Gasdisponering - elproduktionsanlæg, Konstruktioner","PE",60,0,null,null,0,""]
["Gasdisponering - elproduktionsanlæg, Mek/EL","PE",20,0,null,null,0,""]
["Gasdisponering - elproduktionsanlæg, SRO","PE",10,0,null,null,0,""]
["Gasrensning - Aktivt kulfilter","m3/t",15,0,null,null,0,""]
["Gasrensning - Biologisk skrubber","m3/t",15,0,null,null,{"$f":"IF(D261=\"\",IF(E261>0,\"Ny data\",IF(E261=\"\",\"\",0)),IF(D261=0,IF(E261=0,0,\"Ny data\"),(E261-D261)/D261))","v":0},{"$f":"IF(E261=\"\",IF(F261>0,\"Ny data\",IF(F261=\"\",\"\",0)),IF(E261=0,IF(F261=0,0,\"Ny data\"),(F261-E261)/E261))","v":""}]
["Opgraderingsanlæg - Membran","m3/t",15,0,null,null,0,""]
["Varmeproduktionsanlæg","m3/t",15,0,null,null,0,""]
["Slutafvanding, slam - lavteknologisk (slambede), Konstruktioner","PE",60,0,null,null,0,""]
["Slutafvanding, slam - lavteknologisk (slambede), Mek/EL","PE",20,0,null,null,0,""]
["Slutafvanding, slam - lavteknologisk (slambede), SRO","PE",10,0,null,null,0,""]
["Slutafvanding, slam - højteknologisk (centrifuger), Konstruktioner","PE",60,0,null,null,0,""]
["Slutafvanding, slam - højteknologisk (centrifuger), Mek/El","PE",20,0,null,null,0,""]
["Slutafvanding, slam - højteknologisk (centrifuger), SRO","PE",10,0,null,null,0,""]
["Renseanlæg >= 5.000 PE, Slamdisponering",null,null,null,null,null,"",""]
["Slutdisponering, slam - lavteknologisk (slammineralisering), Konstruktioner","PE",60,0,null,null,0,""]
["Slutdisponering, slam - lavteknologisk (slammineralisering), Mek/EL","PE",20,0,null,null,0,""]
["Slutdisponering, slam - lavteknologisk (slammineralisering), SRO","PE",10,0,null,null,0,""]
["Slutdisponering, slam - højteknologisk (slamtørring), Konstruktioner","PE",60,0,null,null,0,""]
["Slutdisponering, slam - højteknologisk (slamtørring), Mek/EL","PE",20,0,null,null,0,""]
["Slutdisponering, slam - højteknologisk (slamtørring), SRO","PE",10,0,null,null,0,""]
["Slutdisponering, slam - højteknologisk (slamtørring og -forbrænding), Konstruktioner","PE",60,0,null,null,0,""]
["Slutdisponering, slam - højteknologisk (slamtørring og -forbrænding), Mek/EL","PE",20,0,null,null,0,""]
["Slutdisponering, slam - højteknologisk (slamtørring og -forbrænding), SRO","PE",10,0,null,null,0,""]
["Renseanlæg 6",null,null,null,null,null,"",""]
["Mindre renseanlæg",null,null,null,null,null,"",""]
["Mindre renseanlæg < 5.000 PE","PE",40,4200,4200,4200,0,0]
["Renseanlæg >= 5.000 PE, Vandbehandling",null,null,null,null,null,"",""]
["Indløb med riste, Konstruktioner","PE",60,0,null,null,0,""]
["Indløb med riste, Mek/EL","PE",20,0,null,null,0,""]
["Indløb med riste, SRO","PE",10,0,null,null,0,""]
["Sand- og fedtfang, Kontruktioner","PE",60,0,null,null,0,""]
["Sand- og fedtfang, Mek/EL","PE",20,0,null,null,0,""]
["Sand- og fedtfang, SRO","PE",10,0,null,null,0,""]
["Forklaring, Konstruktioner","PE",60,0,null,null,0,""]
["Forklaring, Mek/EL","PE",20,0,null,null,0,""]
["Forklaring, SRO","PE",10,0,null,null,0,""]
["Beluftningstanke, Konstruktioner","PE",60,0,null,null,0,""]
["Beluftningstanke, Mek/EL","PE",20,0,null,null,0,""]
["Beluftningstanke, SRO","PE",10,0,null,null,0,""]
["Efterklaringstanke, Konstruktioner","PE",60,0,null,null,0,""]
["Efterklaringstanke, Mek/El","PE",20,0,null,null,0,""]
["Efterklaringstanke, SRO","PE",10,0,null,null,0,""]
["Efterbehandlingsanlæg (sandfilter), Konstruktioner","PE",60,0,null,null,0,""]
["Efterbehandlingsanlæg (sandfilter), Mek/EL","PE",20,0,null,null,0,""]
["Efterbehandlingsanlæg (sandfilter), SRO","PE",10,0,null,null,0,""]
["Renseanlæg >= 5.000 PE, Slambehandling",null,null,null,null,null,"",""]
["Forafvanding, slam, Konstruktion","PE",60,0,null,null,0,""]
["Forafvanding, slam, Mek/EL","PE",20,0,null,null,0,""]
["Forafvanding, slam, SRO","PE",10,0,null,null,0,""]
["Rådnetanke, slam, Konstruktioner","PE",60,0,null,null,0,""]
["Rådnetanke, slam, Mek/EL","PE",20,0,null,null,0,""]
["Rådnetanke, slam, SRO","PE",10,0,null,null,0,""]
["Gasdisponering, Konstruktioner","PE",60,0,null,null,0,""]
["Gasdisponering, Mek/EL","PE",20,0,null,null,0,""]
["Gasdisponering, SRO","PE",10,0,null,null,0,""]
["Gasdisponering - elproduktionsanlæg, Konstruktioner","PE",60,0,null,null,0,""]
["Gasdisponering - elproduktionsanlæg, Mek/EL","PE",20,0,null,null,0,""]
["Gasdisponering - elproduktionsanlæg, SRO","PE",10,0,null,null,0,""]
["Gasrensning - Aktivt kulfilter","m3/t",15,0,null,null,0,""]
["Gasrensning - Biologisk skrubber","m3/t",15,0,null,null,0,""]
["Opgraderingsanlæg - Membran","m3/t",15,0,null,null,0,""]
["Varmeproduktionsanlæg","m3/t",15,0,null,null,0,""]
["Slutafvanding, slam - lavteknologisk (slambede), Konstruktioner","PE",60,0,null,null,0,""]
["Slutafvanding, slam - lavteknologisk (slambede), Mek/EL","PE",20,0,null,null,0,""]
["Slutafvanding, slam - lavteknologisk (slambede), SRO","PE",10,0,null,null,0,""]
["Slutafvanding, slam - højteknologisk (centrifuger), Konstruktioner","PE",60,0,null,null,0,""]
["Slutafvanding, slam - højteknologisk (centrifuger), Mek/El","PE",20,0,null,null,0,""]
["Slutafvanding, slam - højteknologisk (centrifuger), SRO","PE",10,0,null,null,0,""]
["Renseanlæg >= 5.000 PE, Slamdisponering",null,null,null,null,null,{"$f":"IF(D325=\"\",IF(E325>0,\"Ny data\",IF(E325=\"\",\"\",0)),IF(D325=0,IF(E325=0,0,\"Ny data\"),(E325-D325)/D325))","v":""},{"$f":"IF(E325=\"\",IF(F325>0,\"Ny data\",IF(F325=\"\",\"\",0)),IF(E325=0,IF(F325=0,0,\"Ny data\"),(F325-E325)/E325))","v":""}]
["Slutdisponering, slam - lavteknologisk (slammineralisering), Konstruktioner","PE",60,0,null,null,0,""]
["Slutdisponering, slam - lavteknologisk (slammineralisering), Mek/EL","PE",20,0,null,null,0,""]
["Slutdisponering, slam - lavteknologisk (slammineralisering), SRO","PE",10,0,null,null,0,""]
["Slutdisponering, slam - højteknologisk (slamtørring), Konstruktioner","PE",60,0,null,null,0,""]
["Slutdisponering, slam - højteknologisk (slamtørring), Mek/EL","PE",20,0,null,null,0,""]
["Slutdisponering, slam - højteknologisk (slamtørring), SRO","PE",10,0,null,null,0,""]
["Slutdisponering, slam - højteknologisk (slamtørring og -forbrænding), Konstruktioner","PE",60,0,null,null,0,""]
["Slutdisponering, slam - højteknologisk (slamtørring og -forbrænding), Mek/EL","PE",20,0,null,null,0,""]
["Slutdisponering, slam - højteknologisk (slamtørring og -forbrænding), SRO","PE",10,0,null,null,0,""]
["Renseanlæg 7",null,null,null,null,null,"",""]
["Mindre renseanlæg",null,null,null,null,null,"",""]
["Mindre renseanlæg < 5.000 PE","PE",40,5500,0,0,-1,0,"fejl"]
["Renseanlæg >= 5.000 PE, Vandbehandling",null,null,null,null,null,"",""]
["Indløb med riste, Konstruktioner","PE",60,7500,7500,7500,0,0]
["Indløb med riste, Mek/EL","PE",20,7500,7500,7500,0,0]
["Indløb med riste, SRO","PE",10,7500,7500,7500,0,0]
["Sand- og fedtfang, Kontruktioner","PE",60,7500,7500,7500,0,0]
["Sand- og fedtfang, Mek/EL","PE",20,7500,7500,7500,0,0]
["Sand- og fedtfang, SRO","PE",10,7500,7500,7500,0,0]
["Forklaring, Konstruktioner","PE",60,0,0,0,0,0]
["Forklaring, Mek/EL","PE",20,0,0,0,0,0]
["Forklaring, SRO","PE",10,0,0,0,0,0]
["Beluftningstanke, Konstruktioner","PE",60,5500,5500,5500,0,0]
["Beluftningstanke, Mek/EL","PE",20,5500,5500,5500,0,0]
["Beluftningstanke, SRO","PE",10,5500,5500,5500,0,0]
["Efterklaringstanke, Konstruktioner","PE",60,7500,7500,7500,0,0]
["Efterklaringstanke, Mek/El","PE",20,7500,7500,7500,0,0]
["Efterklaringstanke, SRO","PE",10,7500,7500,7500,0,0]
["Efterbehandlingsanlæg (sandfilter), Konstruktioner","PE",60,0,null,null,0,""]
["Efterbehandlingsanlæg (sandfilter), Mek/EL","PE",20,0,null,null,0,""]
["Efterbehandlingsanlæg (sandfilter), SRO","PE",10,0,null,null,0,""]
["Renseanlæg >= 5.000 PE, Slambehandling",null,null,null,null,null,"",""]
["Forafvanding, slam, Konstruktion","PE",60,0,null,null,0,""]
["Forafvanding, slam, Mek/EL","PE",20,0,null,null,0,""]
["Forafvanding, slam, SRO","PE",10,0,null,null,0,""]
["Rådnetanke, slam, Konstruktioner","PE",60,0,null,null,0,""]
["Rådnetanke, slam, Mek/EL","PE",20,0,null,null,0,""]
["Rådnetanke, slam, SRO","PE",10,0,null,null,0,""]
["Gasdisponering, Konstruktioner","PE",60,0,null,null,0,""]
["Gasdisponering, Mek/EL","PE",20,0,null,null,0,""]
["Gasdisponering, SRO","PE",10,0,null,null,0,""]
["Gasdisponering - elproduktionsanlæg, Konstruktioner","PE",60,0,null,null,0,""]
["Gasdisponering - elproduktionsanlæg, Mek/EL","PE",20,0,null,null,0,""]
["Gasdisponering - elproduktionsanlæg, SRO","PE",10,0,null,null,0,""]
["Gasrensning - Aktivt kulfilter","m3/t",15,0,null,null,0,""]
["Gasrensning - Biologisk skrubber","m3/t",15,0,null,null,0,""]
["Opgraderingsanlæg - Membran","m3/t",15,0,null,null,0,""]
["Varmeproduktionsanlæg","m3/t",15,0,null,null,0,""]
["Slutafvanding, slam - lavteknologisk (slambede), Konstruktioner","PE",60,0,null,null,0,""]
["Slutafvanding, slam - lavteknologisk (slambede), Mek/EL","PE",20,0,null,null,0,""]
["Slutafvanding, slam - lavteknologisk (slambede), SRO","PE",10,0,null,null,0,""]
["Slutafvanding, slam - højteknologisk (centrifuger), Konstruktioner","PE",60,5500,5500,5500,0,0]
["Slutafvanding, slam - højteknologisk (centrifuger), Mek/El","PE",20,5500,5500,5500,0,0]
["Slutafvanding, slam - højteknologisk (centrifuger), SRO","PE",10,5500,5500,5500,0,0]
["Renseanlæg >= 5.000 PE, Slamdisponering",null,null,null,null,null,"",""]
["Slutdisponering, slam - lavteknologisk (slammineralisering), Konstruktioner","PE",60,5500,5500,5500,0,0]
["Slutdisponering, slam - lavteknologisk (slammineralisering), Mek/EL","PE",20,0,null,null,0,""]
["Slutdisponering, slam - lavteknologisk (slammineralisering), SRO","PE",10,0,null,null,0,""]
["Slutdisponering, slam - højteknologisk (slamtørring), Konstruktioner","PE",60,0,null,null,0,""]
["Slutdisponering, slam - højteknologisk (slamtørring), Mek/EL","PE",20,0,null,null,0,""]
["Slutdisponering, slam - højteknologisk (slamtørring), SRO","PE",10,0,null,null,0,""]
["Slutdisponering, slam - højteknologisk (slamtørring og -forbrænding), Konstruktioner","PE",60,0,null,null,0,""]
["Slutdisponering, slam - højteknologisk (slamtørring og -forbrænding), Mek/EL","PE",20,0,null,null,0,""]
["Slutdisponering, slam - højteknologisk (slamtørring og -forbrænding), SRO","PE",10,0,null,null,{"$f":"IF(D389=\"\",IF(E389>0,\"Ny data\",IF(E389=\"\",\"\",0)),IF(D389=0,IF(E389=0,0,\"Ny data\"),(E389-D389)/D389))","v":0},{"$f":"IF(E389=\"\",IF(F389>0,\"Ny data\",IF(F389=\"\",\"\",0)),IF(E389=0,IF(F389=0,0,\"Ny data\"),(F389-E389)/E389))","v":""}]
["Renseanlæg 8",null,null,null,null,null,"",""]
["Mindre renseanlæg",null,null,null,null,null,"",""]
["Mindre renseanlæg < 5.000 PE","PE",40,0,null,null,0,""]
["Renseanlæg >= 5.000 PE, Vandbehandling",null,null,null,null,null,"",""]
["Indløb med riste, Konstruktioner","PE",60,11517,11517,11517,0,0]
["Indløb med riste, Mek/EL","PE",20,7500,7500,7500,0,0]
["Indløb med riste, SRO","PE",10,7500,7500,7500,0,0]
["Sand- og fedtfang, Kontruktioner","PE",60,11517,11517,11517,0,0]
["Sand- og fedtfang, Mek/EL","PE",20,7500,7500,7500,0,0]
["Sand- og fedtfang, SRO","PE",10,7500,7500,7500,0,0]
["Forklaring, Konstruktioner","PE",60,0,0,0,0,0]
["Forklaring, Mek/EL","PE",20,0,0,0,0,0]
["Forklaring, SRO","PE",10,0,0,0,0,0]
["Beluftningstanke, Konstruktioner","PE",60,11517,11517,11517,0,0]
["Beluftningstanke, Mek/EL","PE",20,11517,11517,11517,0,0]
["Beluftningstanke, SRO","PE",10,11517,11517,11517,0,0]
["Efterklaringstanke, Konstruktioner","PE",60,7500,7500,7500,0,0]
["Efterklaringstanke, Mek/El","PE",20,7500,7500,7500,0,0]
["Efterklaringstanke, SRO","PE",10,7500,7500,7500,0,0]
["Efterbehandlingsanlæg (sandfilter), Konstruktioner","PE",60,7500,7500,7500,0,0]
["Efterbehandlingsanlæg (sandfilter), Mek/EL","PE",20,7500,7500,7500,0,0]
["Efterbehandlingsanlæg (sandfilter), SRO","PE",10,7500,7500,7500,0,0]
["Renseanlæg >= 5.000 PE, Slambehandling",null,null,null,null,null,"",""]
["Forafvanding, slam, Konstruktion","PE",60,0,null,null,0,""]
["Forafvanding, slam, Mek/EL","PE",20,0,null,null,0,""]
["Forafvanding, slam, SRO","PE",10,0,null,null,0,""]
["Rådnetanke, slam, Konstruktioner","PE",60,0,null,null,0,""]
["Rådnetanke, slam, Mek/EL","PE",20,0,null,null,0,""]
["Rådnetanke, slam, SRO","PE",10,0,null,null,0,""]
["Gasdisponering, Konstruktioner","PE",60,0,null,null,0,""]
["Gasdisponering, Mek/EL","PE",20,0,null,null,0,""]
["Gasdisponering, SRO","PE",10,0,null,null,0,""]
["Gasdisponering - elproduktionsanlæg, Konstruktioner","PE",60,0,null,null,0,""]
["Gasdisponering - elproduktionsanlæg, Mek/EL","PE",20,0,null,null,0,""]
["Gasdisponering - elproduktionsanlæg, SRO","PE",10,0,null,null,0,""]
["Gasrensning - Aktivt kulfilter","m3/t",15,0,null,null,0,""]
["Gasrensning - Biologisk skrubber","m3/t",15,0,null,null,0,""]
["Opgraderingsanlæg - Membran","m3/t",15,0,null,null,0,""]
["Varmeproduktionsanlæg","m3/t",15,0,null,null,0,""]
["Slutafvanding, slam - lavteknologisk (slambede), Konstruktioner","PE",60,0,null,null,0,""]
["Slutafvanding, slam - lavteknologisk (slambede), Mek/EL","PE",20,0,null,null,0,""]
["Slutafvanding, slam - lavteknologisk (slambede), SRO","PE",10,0,null,null,0,""]
["Slutafvanding, slam - højteknologisk (centrifuger), Konstruktioner","PE",60,11517,11517,11517,0,0]
["Slutafvanding, slam - højteknologisk (centrifuger), Mek/El","PE",20,11517,11517,11517,0,0]
["Slutafvanding, slam - højteknologisk (centrifuger), SRO","PE",10,11517,11517,11517,0,0]
["Renseanlæg >= 5.000 PE, Slamdisponering",null,null,null,null,null,"",""]
["Slutdisponering, slam - lavteknologisk (slammineralisering), Konstruktioner","PE",60,11517,11517,11517,0,0]
["Slutdisponering, slam - lavteknologisk (slammineralisering), Mek/EL","PE",20,0,null,null,0,""]
["Slutdisponering, slam - lavteknologisk (slammineralisering), SRO","PE",10,0,null,null,0,""]
["Slutdisponering, slam - højteknologisk (slamtørring), Konstruktioner","PE",60,0,null,null,0,""]
["Slutdisponering, slam - højteknologisk (slamtørring), Mek/EL","PE",20,0,null,null,0,""]
["Slutdisponering, slam - højteknologisk (slamtørring), SRO","PE",10,0,null,null,0,""]
["Slutdisponering, slam - højteknologisk (slamtørring og -forbrænding), Konstruktioner","PE",60,0,null,null,0,""]
["Slutdisponering, slam - højteknologisk (slamtørring og -forbrænding), Mek/EL","PE",20,0,null,null,0,""]
["Slutdisponering, slam - højteknologisk (slamtørring og -forbrænding), SRO","PE",10,0,null,null,0,""]
["Renseanlæg 9",null,null,null,null,null,"",""]
["Mindre renseanlæg",null,null,null,null,null,"",""]
["Mindre renseanlæg < 5.000 PE","PE",40,0,null,null,0,""]
["Renseanlæg >= 5.000 PE, Vandbehandling",null,null,null,null,null,"",""]
["Indløb med riste, Konstruktioner","PE",60,9375,9375,9375,0,0]
["Indløb med riste, Mek/EL","PE",20,9375,9375,9375,0,0]
["Indløb med riste, SRO","PE",10,9375,9375,9375,0,0]
["Sand- og fedtfang, Kontruktioner","PE",60,9375,9375,9375,0,0]
["Sand- og fedtfang, Mek/EL","PE",20,9375,9375,9375,{"$f":"IF(D453=\"\",IF(E453>0,\"Ny data\",IF(E453=\"\",\"\",0)),IF(D453=0,IF(E453=0,0,\"Ny data\"),(E453-D453)/D453))","v":0},{"$f":"IF(E453=\"\",IF(F453>0,\"Ny data\",IF(F453=\"\",\"\",0)),IF(E453=0,IF(F453=0,0,\"Ny data\"),(F453-E453)/E453))","v":0}]
["Sand- og fedtfang, SRO","PE",10,9375,9375,9375,0,0]
["Forklaring, Konstruktioner","PE",60,0,0,0,0,0]
["Forklaring, Mek/EL","PE",20,0,0,0,0,0]
["Forklaring, SRO","PE",10,0,0,0,0,0]
["Beluftningstanke, Konstruktioner","PE",60,6700,6700,6700,0,0]
["Beluftningstanke, Mek/EL","PE",20,6700,6700,6700,0,0]
["Beluftningstanke, SRO","PE",10,6700,6700,6700,0,0]
["Efterklaringstanke, Konstruktioner","PE",60,9375,9375,9375,0,0]
["Efterklaringstanke, Mek/El","PE",20,9375,9375,9375,0,0]
["Efterklaringstanke, SRO","PE",10,9375,9375,9375,0,0]
["Efterbehandlingsanlæg (sandfilter), Konstruktioner","PE",60,0,0,0,0,0]
["Efterbehandlingsanlæg (sandfilter), Mek/EL","PE",20,0,0,0,0,0]
["Efterbehandlingsanlæg (sandfilter), SRO","PE",10,0,0,0,0,0]
["Renseanlæg >= 5.000 PE, Slambehandling",null,null,null,null,null,"",""]
["Forafvanding, slam, Konstruktion","PE",60,0,null,null,0,""]
["Forafvanding, slam, Mek/EL","PE",20,0,null,null,0,""]
["Forafvanding, slam, SRO","PE",10,0,null,null,0,""]
["Rådnetanke, slam, Konstruktioner","PE",60,0,null,null,0,""]
["Rådnetanke, slam, Mek/EL","PE",20,0,null,null,0,""]
["Rådnetanke, slam, SRO","PE",10,0,null,null,0,""]
["Gasdisponering, Konstruktioner","PE",60,0,null,null,0,""]
["Gasdisponering, Mek/EL","PE",20,0,null,null,0,""]
["Gasdisponering, SRO","PE",10,0,null,null,0,""]
["Gasdisponering - elproduktionsanlæg, Konstruktioner","PE",60,0,null,null,0,""]
["Gasdisponering - elproduktionsanlæg, Mek/EL","PE",20,0,null,null,0,""]
["Gasdisponering - elproduktionsanlæg, SRO","PE",10,0,null,null,0,""]
["Gasrensning - Aktivt kulfilter","m3/t",15,0,null,null,0,""]
["Gasrensning - Biologisk skrubber","m3/t",15,0,null,null,0,""]
["Opgraderingsanlæg - Membran","m3/t",15,0,null,null,0,""]
["Varmeproduktionsanlæg","m3/t",15,0,null,null,0,""]
["Slutafvanding, slam - lavteknologisk (slambede), Konstruktioner","PE",60,0,null,null,0,""]
["Slutafvanding, slam - lavteknologisk (slambede), Mek/EL","PE",20,0,null,null,0,""]
["Slutafvanding, slam - lavteknologisk (slambede), SRO","PE",10,0,null,null,0,""]
["Slutafvanding, slam - højteknologisk (centrifuger), Konstruktioner","PE",60,6700,6700,6700,0,0]
["Slutafvanding, slam - højteknologisk (centrifuger), Mek/El","PE",20,6700,6700,6700,0,0]
["Slutafvanding, slam - højteknologisk (centrifuger), SRO","PE",10,6700,6700,6700,0,0]
["Renseanlæg >= 5.000 PE, Slamdisponering",null,null,null,null,null,"",""]
["Slutdisponering, slam - lavteknologisk (slammineralisering), Konstruktioner","PE",60,6700,6700,6700,0,0]
["Slutdisponering, slam - lavteknologisk (slammineralisering), Mek/EL","PE",20,0,null,null,0,""]
["Slutdisponering, slam - lavteknologisk (slammineralisering), SRO","PE",10,0,null,null,0,""]
["Slutdisponering, slam - højteknologisk (slamtørring), Konstruktioner","PE",60,0,null,null,0,""]
["Slutdisponering, slam - højteknologisk (slamtørring), Mek/EL","PE",20,0,null,null,0,""]
["Slutdisponering, slam - højteknologisk (slamtørring), SRO","PE",10,0,null,null,0,""]
["Slutdisponering, slam - højteknologisk (slamtørring og -forbrænding), Konstruktioner","PE",60,0,null,null,0,""]
["Slutdisponering, slam - højteknologisk (slamtørring og -forbrænding), Mek/EL","PE",20,0,null,null,0,""]
["Slutdisponering, slam - højteknologisk (slamtørring og -forbrænding), SRO","PE",10,0,null,null,0,""]
["Renseanlæg 10",null,null,null,null,null,"",""]
["Mindre renseanlæg",null,null,null,null,null,"",""]
["Mindre renseanlæg < 5.000 PE","PE",40,0,5,5,"Ny data",0,"mini renseanlæg aldrig indberettet"]
["Renseanlæg >= 5.000 PE, Vandbehandling",null,null,null,null,null,"",""]
["Indløb med riste, Konstruktioner","PE",60,0,null,null,0,""]
["Indløb med riste, Mek/EL","PE",20,0,null,null,0,""]
["Indløb med riste, SRO","PE",10,0,null,null,0,""]
["Sand- og fedtfang, Kontruktioner","PE",60,0,null,null,0,""]
["Sand- og fedtfang, Mek/EL","PE",20,0,null,null,0,""]
["Sand- og fedtfang, SRO","PE",10,0,null,null,0,""]
["Forklaring, Konstruktioner","PE",60,0,null,null,0,""]
["Forklaring, Mek/EL","PE",20,0,null,null,0,""]
["Forklaring, SRO","PE",10,0,null,null,0,""]
["Beluftningstanke, Konstruktioner","PE",60,0,null,null,0,""]
["Beluftningstanke, Mek/EL","PE",20,0,null,null,0,""]
["Beluftningstanke, SRO","PE",10,0,null,null,0,""]
["Efterklaringstanke, Konstruktioner","PE",60,0,null,null,0,""]
["Efterklaringstanke, Mek/El","PE",20,0,null,null,{"$f":"IF(D517=\"\",IF(E517>0,\"Ny data\",IF(E517=\"\",\"\",0)),IF(D517=0,IF(E517=0,0,\"Ny data\"),(E517-D517)/D517))","v":0},{"$f":"IF(E517=\"\",IF(F517>0,\"Ny data\",IF(F517=\"\",\"\",0)),IF(E517=0,IF(F517=0,0,\"Ny data\"),(F517-E517)/E517))","v":""}]
["Efterklaringstanke, SRO","PE",10,0,null,null,0,""]
["Efterbehandlingsanlæg (sandfilter), Konstruktioner","PE",60,0,null,null,0,""]
["Efterbehandlingsanlæg (sandfilter), Mek/EL","PE",20,0,null,null,0,""]
["Efterbehandlingsanlæg (sandfilter), SRO","PE",10,0,null,null,0,""]
["Renseanlæg >= 5.000 PE, Slambehandling",null,null,null,null,null,"",""]
["Forafvanding, slam, Konstruktion","PE",60,0,null,null,0,""]
["Forafvanding, slam, Mek/EL","PE",20,0,null,null,0,""]
["Forafvanding, slam, SRO","PE",10,0,null,null,0,""]
["Rådnetanke, slam, Konstruktioner","PE",60,0,null,null,0,""]
["Rådnetanke, slam, Mek/EL","PE",20,0,null,null,0,""]
["Rådnetanke, slam, SRO","PE",10,0,null,null,0,""]
["Gasdisponering, Konstruktioner","PE",60,0,null,null,0,""]
["Gasdisponering, Mek/EL","PE",20,0,null,null,0,""]
["Gasdisponering, SRO","PE",10,0,null,null,0,""]
["Gasdisponering - elproduktionsanlæg, Konstruktioner","PE",60,0,null,null,0,""]
["Gasdisponering - elproduktionsanlæg, Mek/EL","PE",20,0,null,null,0,""]
["Gasdisponering - elproduktionsanlæg, SRO","PE",10,0,null,null,0,""]
["Gasrensning - Aktivt kulfilter","m3/t",15,0,null,null,0,""]
["Gasrensning - Biologisk skrubber","m3/t",15,0,null,null,0,""]
["Opgraderingsanlæg - Membran","m3/t",15,0,null,null,0,""]
["Varmeproduktionsanlæg","m3/t",15,0,null,null,0,""]
["Slutafvanding, slam - lavteknologisk (slambede), Konstruktioner","PE",60,0,null,null,0,""]
["Slutafvanding, slam - lavteknologisk (slambede), Mek/EL","PE",20,0,null,null,0,""]
["Slutafvanding, slam - lavteknologisk (slambede), SRO","PE",10,0,null,null,0,""]
["Slutafvanding, slam - højteknologisk (centrifuger), Konstruktioner","PE",60,0,null,null,0,""]
["Slutafvanding, slam - højteknologisk (centrifuger), Mek/El","PE",20,0,null,null,0,""]
["Slutafvanding, slam - højteknologisk (centrifuger), SRO","PE",10,0,null,null,0,""]
["Renseanlæg >= 5.000 PE, Slamdisponering",null,null,null,null,null,"",""]
["Slutdisponering, slam - lavteknologisk (slammineralisering), Konstruktioner","PE",60,0,null,null,0,""]
["Slutdisponering, slam - lavteknologisk (slammineralisering), Mek/EL","PE",20,0,null,null,0,""]
["Slutdisponering, slam - lavteknologisk (slammineralisering), SRO","PE",10,0,null,null,0,""]
["Slutdisponering, slam - højteknologisk (slamtørring), Konstruktioner","PE",60,0,null,null,0,""]
["Slutdisponering, slam - højteknologisk (slamtørring), Mek/EL","PE",20,0,null,null,0,""]
["Slutdisponering, slam - højteknologisk (slamtørring), SRO","PE",10,0,null,null,0,""]
["Slutdisponering, slam - højteknologisk (slamtørring og -forbrænding), Konstruktioner","PE",60,0,null,null,0,""]
["Slutdisponering, slam - højteknologisk (slamtørring og -forbrænding), Mek/EL","PE",20,0,null,null,0,""]
["Slutdisponering, slam - højteknologisk (slamtørring og -forbrænding), SRO","PE",20,0,null,null,0,""]

{"sheet":"Distributionsanlæg","index":1,"n_rows":318,"n_cols":9,"rows_kept":318,"cut":false,"hidden":false,"merged":[[0,0,1,0],[0,1,1,1],[0,2,1,2],[0,3,1,3],[0,8,1,8],[0,4,1,4],[0,5,1,5],[0,6,1,6],[0,7,1,7]]}
["Distributionsanlæg","Enhed","Standard-levetid","Samlet mængde per 31/12-2022","Samlet mængde per 31/12-2023","Samlet mængde per 31/12-2024","Afvigelse 2022-2023","Afvigelse 2023-2024","Bemærkninger"]
[]
["Ledningsnet - Land",null,null,null,null,null,{"$f":"IF(D3=\"\",IF(E3>0,\"Ny data\",IF(E3=\"\",\"\",0)),IF(D3=0,IF(E3=0,0,\"Ny data\"),(E3-D3)/D3))","v":""},{"$f":"IF(E3=\"\",IF(F3>0,\"Ny data\",IF(F3=\"\",\"\",0)),IF(E3=0,IF(F3=0,0,\"Ny data\"),(F3-E3)/E3))","v":""}]
["Ledningsnet ≤ Ø 200 mm ","meter",75,220595.35,220471.65,222138.89,-5.6075524710748272E-4,7.5621514149325766E-3]
["Ø 200 mm < Ledningsnet ≤ Ø 500 mm ","meter",75,69279,69250.570000000007,67960.639999999999,-4.1036966468905461E-4,-1.8626994694773018E-2]
["Ø 500 mm < Ledningsnet ≤ Ø 800 mm","meter",75,6641.8699999999981,6588.1699999999983,6621.5299999999979,-8.0850724268917984E-3,5.0636216126784348E-3]
["Ø 800 mm < Ledningsnet ≤ Ø 1000 mm","meter",75,1486.43,1486.43,1488.0400000000002,0,1.083132068109583E-3]
["Ø 1000 mm < Ledningsnet ≤ Ø 1200 mm","meter",75,0,null,null,0,""]
["Ø 1200 mm < Ledningsnet ≤ Ø 1600 mm","meter",75,0,null,null,0,""]
["Ledningsnet > Ø 1600 mm (rørbassiner og transportledninger)","meter",75,0,null,null,0,""]
["Strømpeforing ≤ Ø 200 mm","meter",50,1958,1993.73,2295.13,1.8248212461695616E-2,0.15117393027140089]
["Strømpeforing Ø 200 mm < Ledningsnet ≤ Ø 500 mm","meter",50,354.95,355.75,485.53,2.2538385688125411E-3,0.36480674631061133,"tilgang"]
["Strømpeforing Ø 500 mm < Ledningsnet ≤ Ø 800 mm","meter",50,160.49,160.49,160.49,0,0]
["Strømpeforing Ø 800 mm < Ledningsnet ≤ Ø 1000 mm","meter",50,0,null,null,0,""]
["Strømpeforing Ø 1000 mm < Ledningsnet ≤ Ø 1200 mm","meter",50,0,null,null,0,""]
["Strømpeforing Ø 1200 mm < Ledningsnet ≤ Ø 1600 mm","meter",50,0,null,null,0,""]
["Ledningsnet - By",null,null,null,null,null,"",""]
["Ledningsnet ≤ Ø 200 mm ","meter",75,243923.77,246268.21,246633.04,9.6113634189894746E-3,1.4814335963217351E-3]
["Ø 200 mm < Ledningsnet ≤ Ø 500 mm ","meter",75,67289.150000000096,67981.740000000165,68007.930000000182,1.0292744075383152E-2,3.8525050991658667E-4]
["Ø 500 mm < Ledningsnet ≤ Ø 800 mm","meter",75,11080.560000000003,11151.539999999999,11159.509999999998,6.4058134245918892E-3,7.1469949441954617E-4]
["Ø 800 mm < Ledningsnet ≤ Ø 1000 mm","meter",75,892.29000000000008,892.25000000000011,890.64,-4.4828475047309302E-5,-1.8044270103671921E-3]
["Ø 1000 mm < Ledningsnet ≤ Ø 1200 mm","meter",75,706.72,706.64,706.64,-1.1319900384882404E-4,0]
["Ø 1200 mm < Ledningsnet ≤ Ø 1600 mm","meter",75,751.16,752.41,752.41,1.6640928696948719E-3,0]
["Ledningsnet > Ø 1600 mm (rørbassiner og transportledninger)","meter",75,347.71999999999997,347.71999999999997,347.71999999999997,0,0]
["Strømpeforing ≤ Ø 200 mm","meter",50,1022.63,1224.8900000000003,1587.1200000000003,0.19778414480310605,0.29572451403799521,"tilgang"]
["Strømpeforing Ø 200 mm < Ledningsnet ≤ Ø 500 mm","meter",50,862.14000000000021,1370.7000000000003,2014.75,0.58988099380611025,0.46986940979061764,"tilgang"]
["Strømpeforing Ø 500 mm < Ledningsnet ≤ Ø 800 mm","meter",50,138.66999999999999,211.2,211.2,0.52304031153097286,0,"tilgang"]
["Strømpeforing Ø 800 mm < Ledningsnet ≤ Ø 1000 mm","meter",50,0,null,null,0,""]
["Strømpeforing Ø 1000 mm < Ledningsnet ≤ Ø 1200 mm","meter",50,0,null,null,0,""]
["Strømpeforing Ø 1200 mm < Ledningsnet ≤ Ø 1600 mm","meter",50,0,null,null,0,""]
["Ledningsnet - City",null,null,null,null,null,"",""]
["Ledningsnet ≤ Ø 200 mm ","meter",75,0,null,null,0,""]
["Ø 200 mm < Ledningsnet ≤ Ø 500 mm ","meter",75,0,null,null,0,""]
["Ø 500 mm < Ledningsnet ≤ Ø 800 mm","meter",75,0,null,null,0,""]
["Ø 800 mm < Ledningsnet ≤ Ø 1000 mm","meter",75,0,null,null,0,""]
["Ø 1000 mm < Ledningsnet ≤ Ø 1200 mm","meter",75,0,null,null,0,""]
["Ø 1200 mm < Ledningsnet ≤ Ø 1600 mm","meter",75,0,null,null,0,""]
["Ledningsnet > Ø 1600 mm (rørbassiner og transportledninger)","meter",75,0,null,null,0,""]
["Strømpeforing ≤ Ø 200 mm","meter",50,0,null,null,0,""]
["Strømpeforing Ø 200 mm < Ledningsnet ≤ Ø 500 mm","meter",50,0,null,null,0,""]
["Strømpeforing Ø 500 mm < Ledningsnet ≤ Ø 800 mm","meter",50,0,null,null,0,""]
["Strømpeforing Ø 800 mm < Ledningsnet ≤ Ø 1000 mm","meter",50,0,null,null,0,""]
["Strømpeforing Ø 1000 mm < Ledningsnet ≤ Ø 1200 mm","meter",50,0,null,null,0,""]
["Strømpeforing Ø 1200 mm < Ledningsnet ≤ Ø 1600 mm","meter",50,0,null,null,0,""]
["Ledningsnet - Indre city",null,null,null,null,null,"",""]
["Ledningsnet ≤ Ø 200 mm ","meter",75,0,null,null,0,""]
["Ø 200 mm < Ledningsnet ≤ Ø 500 mm ","meter",75,0,null,null,0,""]
["Ø 500 mm < Ledningsnet ≤ Ø 800 mm","meter",75,0,null,null,0,""]
["Ø 800 mm < Ledningsnet ≤ Ø 1000 mm","meter",75,0,null,null,0,""]
["Ø 1000 mm < Ledningsnet ≤ Ø 1200 mm","meter",75,0,null,null,0,""]
["Ø 1200 mm < Ledningsnet ≤ Ø 1600 mm","meter",75,0,null,null,0,""]
["Ledningsnet > Ø 1600 mm (rørbassiner og transportledninger)","meter",75,0,null,null,0,""]
["Strømpeforing ≤ Ø 200 mm","meter",50,0,null,null,0,""]
["Strømpeforing Ø 200 mm < Ledningsnet ≤ Ø 500 mm","meter",50,0,null,null,0,""]
["Strømpeforing Ø 500 mm < Ledningsnet ≤ Ø 800 mm","meter",50,0,null,null,0,""]
["Strømpeforing Ø 800 mm < Ledningsnet ≤ Ø 1000 mm","meter",50,0,null,null,0,""]
["Strømpeforing Ø 1000 mm < Ledningsnet ≤ Ø 1200 mm","meter",50,0,null,null,0,""]
["Strømpeforing Ø 1200 mm < Ledningsnet ≤ Ø 1600 mm","meter",50,0,null,null,0,""]
["Brønde og stik, ledningsnet - Land",null,null,null,null,null,"",""]
["Brønde","stk.",75,4760,4748,4749,-2.5210084033613447E-3,2.1061499578770007E-4]
["Stik","stk.",75,5567,5569,5581,3.5925992455541585E-4,2.1547854192853293E-3]
["Brønde og stik, ledningsnet - By",null,null,null,null,null,"",""]
["Brønde","stk.",75,6243,6298,6321,8.8098670510972296E-3,3.6519530009526836E-3]
["Stik","stk.",75,10921,11052,11085,1.199523853127003E-2,2.985884907709012E-3]
["Brønde og stik, ledningsnet - City",null,null,null,null,null,"",""]
["Brønde","stk.",75,0,null,null,0,""]
["Stik","stk.",75,0,null,null,{"$f":"IF(D67=\"\",IF(E67>0,\"Ny data\",IF(E67=\"\",\"\",0)),IF(D67=0,IF(E67=0,0,\"Ny data\"),(E67-D67)/D67))","v":0},{"$f":"IF(E67=\"\",IF(F67>0,\"Ny data\",IF(F67=\"\",\"\",0)),IF(E67=0,IF(F67=0,0,\"Ny data\"),(F67-E67)/E67))","v":""}]
["Brønde og stik, ledningsnet - Indre city",null,null,null,null,null,"",""]
["Brønde","stk.",75,0,null,null,0,""]
["Stik","stk.",75,0,null,null,0,""]
["Små pumpestationer (<100 l/s) inkl. SRO-anlæg - Land",null,null,null,null,null,"",""]
["Tryksatte minipumpestationer (husstandssystemer)","stk.",30,49,49,49,0,0]
["Pumpestationer i brønde (< 6,25 m2), Konstruktioner","stk.",50,{"$f":"172+13-6-2-104","v":73},{"$f":"172+13-6-2-104","v":73},{"$f":"172+13-6-2-104","v":73},0,0]
["Pumpestationer i brønde (< 6,25 m2), Mek/EL","stk.",20,{"$f":"172+13-6-2","v":177},{"$f":"172+13-6-2","v":177},{"$f":"172+13-6-2","v":177},0,0]
["Pumpestationer i brønde (< 6,25 m2), SRO","stk.",10,{"$f":"172+13-6-2-104","v":73},{"$f":"172+13-6-2-104","v":73},{"$f":"172+13-6-2-104","v":73},0,0]
["Pumpestationer m. overbygning (< 20 m2), Konstruktioner","stk.",50,6,6,6,0,0]
["Pumpestationer m. overbygning (< 20 m2), Mek/EL","stk.",20,6,6,6,0,0]
["Pumpestationer m. overbygning (< 20 m2), SRO","stk.",10,6,6,6,0,0]
["Pumpestationer i underjordiske bygværker (<50 m2), Konstruktioner","stk.",50,0,0,0,0,0]
["Pumpestationer i underjordiske bygværker (<50 m2), Mek/El","stk.",20,0,0,0,0,0]
["Pumpestationer i underjordiske bygværker (<50 m2), SRO","stk.",10,0,0,0,0,0]
["Små pumpestationer (<100 l/s) inkl. SRO-anlæg - By",null,null,null,null,null,"",""]
["Tryksatte minipumpestationer (husstandssystemer)","stk.",30,14,14,14,0,0]
["Pumpestationer i brønde (< 6,25 m2), Konstruktioner","stk.",50,{"$f":"51-23","v":28},{"$f":"51-23","v":28},{"$f":"51-23","v":28},0,0]
["Pumpestationer i brønde (< 6,25 m2), Mek/EL","stk.",20,51,51,51,0,0]
["Pumpestationer i brønde (< 6,25 m2), SRO","stk.",10,{"$f":"51-23","v":28},{"$f":"51-23","v":28},{"$f":"51-23","v":28},0,0]
["Pumpestationer m. overbygning (< 20 m2), Konstruktioner","stk.",50,0,0,0,0,0]
["Pumpestationer m. overbygning (< 20 m2), Mek/EL","stk.",20,0,0,0,0,0]
["Pumpestationer m. overbygning (< 20 m2), SRO","stk.",10,0,0,0,0,0]
["Pumpestationer i underjordiske bygværker (<50 m2), Konstruktioner","stk.",50,0,0,0,0,0]
["Pumpestationer i underjordiske bygværker (<50 m2), Mek/El","stk.",20,0,0,0,0,0]
["Pumpestationer i underjordiske bygværker (<50 m2), SRO","stk.",10,0,0,0,0,0]
["Små pumpestationer (<100 l/s) inkl. SRO-anlæg - City",null,null,null,null,null,"",""]
["Tryksatte minipumpestationer (husstandssystemer)","stk.",30,0,null,null,0,""]
["Pumpestationer i brønde (< 6,25 m2), Konstruktioner","stk.",50,1,1,1,0,0]
["Pumpestationer i brønde (< 6,25 m2), Mek/EL","stk.",20,1,1,1,0,0]
["Pumpestationer i brønde (< 6,25 m2), SRO","stk.",10,1,1,1,0,0]
["Pumpestationer m. overbygning (< 20 m2), Konstruktioner","stk.",50,0,null,null,0,""]
["Pumpestationer m. overbygning (< 20 m2), Mek/EL","stk.",20,0,null,null,0,""]
["Pumpestationer m. overbygning (< 20 m2), SRO","stk.",10,0,null,null,0,""]
["Pumpestationer i underjordiske bygværker (<50 m2), Konstruktioner","stk.",50,0,null,null,0,""]
["Pumpestationer i underjordiske bygværker (<50 m2), Mek/El","stk.",20,0,null,null,0,""]
["Pumpestationer i underjordiske bygværker (<50 m2), SRO","stk.",10,0,null,null,0,""]
["Små pumpestationer (<100 l/s) inkl. SRO-anlæg - Indre city",null,null,null,null,null,"",""]
["Tryksatte minipumpestationer (husstandssystemer)","stk.",30,0,null,null,0,""]
["Pumpestationer i brønde (< 6,25 m2), Konstruktioner","stk.",50,0,null,null,0,""]
["Pumpestationer i brønde (< 6,25 m2), Mek/EL","stk.",20,0,null,null,0,""]
["Pumpestationer i brønde (< 6,25 m2), SRO","stk.",10,0,null,null,0,""]
["Pumpestationer m. overbygning (< 20 m2), Konstruktioner","stk.",50,0,null,null,0,""]
["Pumpestationer m. overbygning (< 20 m2), Mek/EL","stk.",20,0,null,null,0,""]
["Pumpestationer m. overbygning (< 20 m2), SRO","stk.",10,0,null,null,0,""]
["Pumpestationer i underjordiske bygværker (<50 m2), Konstruktioner","stk.",50,0,null,null,0,""]
["Pumpestationer i underjordiske bygværker (<50 m2), Mek/El","stk.",20,0,null,null,0,""]
["Pumpestationer i underjordiske bygværker (<50 m2), SRO","stk.",10,0,null,null,0,""]
["Store pumpestationer: inkl. SRO-anlæg - Land",null,null,null,null,null,"",""]
["Kælder","m2",75,0,null,null,0,""]
["Pumpeinstallation Miljøklasse A (100-300 l/s) - Mek/EL","stk.",20,41,41,41,0,0]
["Pumpeinstallation Miljøklasse A (100-300 l/s) - SRO","stk.",10,20,20,20,0,0]
["Pumpeinstallation Miljøklasse A (300-600 l/s) - Mek/EL","stk.",20,0,null,null,0,""]
["Pumpeinstallation Miljøklasse A (300-600 l/s) - SRO","stk.",10,0,null,null,0,""]
["Pumpeinstallation Miljøklasse A (600-1.000 l/s) - Mek/EL","stk.",20,0,null,null,0,""]
["Pumpeinstallation Miljøklasse A (600-1.000 l/s) - SRO","stk.",10,0,null,null,0,""]
["Pumpeinstallation Miljøklasse A (1.000-1.500 l/s) - Mek/EL","stk.",20,0,null,null,0,""]
["Pumpeinstallation Miljøklasse A (1.000-1.500 l/s) - SRO","stk.",10,0,null,null,0,""]
["Pumpeinstallation Miljøklasse B (100-300 l/s) - Mek/EL","stk.",20,0,null,null,0,""]
["Pumpeinstallation Miljøklasse B (100-300 l/s) - SRO","stk.",10,0,null,null,0,""]
["Pumpeinstallation Miljøklasse B (300-600 l/s) - Mek/EL","stk.",20,0,null,null,0,""]
["Pumpeinstallation Miljøklasse B (300-600 l/s) - SRO","stk.",10,0,null,null,0,""]
["Pumpeinstallation Miljøklasse B (600-1.000 l/s) - Mek/EL","stk.",20,0,null,null,0,""]
["Pumpeinstallation Miljøklasse B (600-1.000 l/s) - SRO","stk.",10,0,null,null,0,""]
["Pumpeinstallation Miljøklasse B (1.000-1.500 l/s) - Mek/EL","stk.",20,0,null,null,{"$f":"IF(D131=\"\",IF(E131>0,\"Ny data\",IF(E131=\"\",\"\",0)),IF(D131=0,IF(E131=0,0,\"Ny data\"),(E131-D131)/D131))","v":0},{"$f":"IF(E131=\"\",IF(F131>0,\"Ny data\",IF(F131=\"\",\"\",0)),IF(E131=0,IF(F131=0,0,\"Ny data\"),(F131-E131)/E131))","v":""}]
["Pumpeinstallation Miljøklasse B (1.000-1.500 l/s) - SRO","stk.",10,0,null,null,0,""]
["Overbygning","m2",75,0,null,null,0,""]
["Store pumpestationer: inkl. SRO-anlæg - By",null,null,null,null,null,"",""]
["Kælder","m2",75,0,null,null,0,""]
["Pumpeinstallation Miljøklasse A (100-300 l/s) - Mek/EL","stk.",20,0,null,null,0,""]
["Pumpeinstallation Miljøklasse A (100-300 l/s) - SRO","stk.",10,0,null,null,0,""]
["Pumpeinstallation Miljøklasse A (300-600 l/s) - Mek/EL","stk.",20,0,null,null,0,""]
["Pumpeinstallation Miljøklasse A (300-600 l/s) - SRO","stk.",10,0,null,null,0,""]
["Pumpeinstallation Miljøklasse A (600-1.000 l/s) - Mek/EL","stk.",20,0,null,null,0,""]
["Pumpeinstallation Miljøklasse A (600-1.000 l/s) - SRO","stk.",10,0,null,null,0,""]
["Pumpeinstallation Miljøklasse A (1.000-1.500 l/s) - Mek/EL","stk.",20,0,null,null,0,""]
["Pumpeinstallation Miljøklasse A (1.000-1.500 l/s) - SRO","stk.",10,0,null,null,0,""]
["Pumpeinstallation Miljøklasse B (100-300 l/s) - Mek/EL","stk.",20,0,null,null,0,""]
["Pumpeinstallation Miljøklasse B (100-300 l/s) - SRO","stk.",10,0,null,null,0,""]
["Pumpeinstallation Miljøklasse B (300-600 l/s) - Mek/EL","stk.",20,0,null,null,0,""]
["Pumpeinstallation Miljøklasse B (300-600 l/s) - SRO","stk.",10,0,null,null,0,""]
["Pumpeinstallation Miljøklasse B (600-1.000 l/s) - Mek/EL","stk.",20,0,null,null,0,""]
["Pumpeinstallation Miljøklasse B (600-1.000 l/s) - SRO","stk.",10,0,null,null,0,""]
["Pumpeinstallation Miljøklasse B (1.000-1.500 l/s) - Mek/EL","stk.",20,0,null,null,0,""]
["Pumpeinstallation Miljøklasse B (1.000-1.500 l/s) - SRO","stk.",10,0,null,null,0,""]
["Overbygning ","m2",75,0,null,null,0,""]
["Store pumpestationer: inkl. SRO-anlæg - City",null,null,null,null,null,"",""]
["Kælder","m2",75,0,null,null,0,""]
["Pumpeinstallation Miljøklasse A (100-300 l/s) - Mek/EL","stk.",20,0,null,null,0,""]
["Pumpeinstallation Miljøklasse A (100-300 l/s) - SRO","stk.",10,0,null,null,0,""]
["Pumpeinstallation Miljøklasse A (300-600 l/s) - Mek/EL","stk.",20,0,null,null,0,""]
["Pumpeinstallation Miljøklasse A (300-600 l/s) - SRO","stk.",10,0,null,null,0,""]
["Pumpeinstallation Miljøklasse A (600-1.000 l/s) - Mek/EL","stk.",20,0,null,null,0,""]
["Pumpeinstallation Miljøklasse A (600-1.000 l/s) - SRO","stk.",10,0,null,null,0,""]
["Pumpeinstallation Miljøklasse A (1.000-1.500 l/s) - Mek/EL","stk.",20,0,null,null,0,""]
["Pumpeinstallation Miljøklasse A (1.000-1.500 l/s) - SRO","stk.",10,0,null,null,0,""]
["Pumpeinstallation Miljøklasse B (100-300 l/s) - Mek/EL","stk.",20,0,null,null,0,""]
["Pumpeinstallation Miljøklasse B (100-300 l/s) - SRO","stk.",10,0,null,null,0,""]
["Pumpeinstallation Miljøklasse B (300-600 l/s) - Mek/EL","stk.",20,0,null,null,0,""]
["Pumpeinstallation Miljøklasse B (300-600 l/s) - SRO","stk.",10,0,null,null,0,""]
["Pumpeinstallation Miljøklasse B (600-1.000 l/s) - Mek/EL","stk.",20,0,null,null,0,""]
["Pumpeinstallation Miljøklasse B (600-1.000 l/s) - SRO","stk.",10,0,null,null,0,""]
["Pumpeinstallation Miljøklasse B (1.000-1.500 l/s) - Mek/EL","stk.",20,0,null,null,0,""]
["Pumpeinstallation Miljøklasse B (1.000-1.500 l/s) - SRO","stk.",10,0,null,null,0,""]
["Overbygning ","m2",75,0,null,null,0,""]
["Store pumpestationer: inkl. SRO-anlæg - Indre city",null,null,null,null,null,"",""]
["Kælder","m2",75,0,null,null,0,""]
["Pumpeinstallation Miljøklasse A (100-300 l/s) - Mek/EL","stk.",20,0,null,null,0,""]
["Pumpeinstallation Miljøklasse A (100-300 l/s) - SRO","stk.",10,0,null,null,0,""]
["Pumpeinstallation Miljøklasse A (300-600 l/s) - Mek/EL","stk.",20,0,null,null,0,""]
["Pumpeinstallation Miljøklasse A (300-600 l/s) - SRO","stk.",10,0,null,null,0,""]
["Pumpeinstallation Miljøklasse A (600-1.000 l/s) - Mek/EL","stk.",20,0,null,null,0,""]
["Pumpeinstallation Miljøklasse A (600-1.000 l/s) - SRO","stk.",10,0,null,null,0,""]
["Pumpeinstallation Miljøklasse A (1.000-1.500 l/s) - Mek/EL","stk.",20,0,null,null,0,""]
["Pumpeinstallation Miljøklasse A (1.000-1.500 l/s) - SRO","stk.",10,0,null,null,0,""]
["Pumpeinstallation Miljøklasse B (100-300 l/s) - Mek/EL","stk.",20,0,null,null,0,""]
["Pumpeinstallation Miljøklasse B (100-300 l/s) - SRO","stk.",10,0,null,null,0,""]
["Pumpeinstallation Miljøklasse B (300-600 l/s) - Mek/EL","stk.",20,0,null,null,0,""]
["Pumpeinstallation Miljøklasse B (300-600 l/s) - SRO","stk.",10,0,null,null,0,""]
["Pumpeinstallation Miljøklasse B (600-1.000 l/s) - Mek/EL","stk.",20,0,null,null,0,""]
["Pumpeinstallation Miljøklasse B (600-1.000 l/s) - SRO","stk.",10,0,null,null,0,""]
["Pumpeinstallation Miljøklasse B (1.000-1.500 l/s) - Mek/EL","stk.",20,0,null,null,0,""]
["Pumpeinstallation Miljøklasse B (1.000-1.500 l/s) - SRO","stk.",10,0,null,null,0,""]
["Overbygning","m2",75,0,null,null,0,""]
["Overløbsbygværker - Land",null,null,null,null,null,"",""]
["Kælder (< 7 m2) ","stk.",75,0,null,null,0,""]
["Kælder (7 - 20 m2) ","m2",75,0,null,null,0,""]
["Kælder (20 - 30 m2)","m2",75,0,null,null,0,""]
["Installationer (mindre end 7 m2)","stk.",20,{"$f":"44+23","v":67},{"$f":"44+23-12","v":55},55,{"$f":"IF(D195=\"\",IF(E195>0,\"Ny data\",IF(E195=\"\",\"\",0)),IF(D195=0,IF(E195=0,0,\"Ny data\"),(E195-D195)/D195))","v":-0.17910447761194029},{"$f":"IF(E195=\"\",IF(F195>0,\"Ny data\",IF(F195=\"\",\"\",0)),IF(E195=0,IF(F195=0,0,\"Ny data\"),(F195-E195)/E195))","v":0},"12 stk er mellem 7-20 og har SRO mm."]
["Installationer, Miljøklasse A. (7-20 m2) - Mek/EL","stk.",20,0,12,12,"Ny data",0,"12 stk er mellem 7-20 og har SRO mm."]
["Installationer, Miljøklasse A. (7-20 m2) - SRO","stk.",10,0,12,12,"Ny data",0,"12 stk er mellem 7-20 og har SRO mm."]
["Installationer, Miljøklasse A. (20-30 m2) - Mek/EL","stk.",20,0,12,12,"Ny data",0,"12 stk er mellem 7-20 og har SRO mm."]
["Installationer, Miljøklasse A. (20-30 m2) - SRO","stk.",10,0,null,null,0,""]
["Installationer, Miljøklasse B. (7-20 m2) - Mek/EL","stk.",20,0,null,null,0,""]
["Installationer, Miljøklasse B. (7-20 m2) - SRO","stk.",10,0,null,null,0,""]
["Installationer, Miljøklasse B. (20-30 m2) - Mek/EL","stk.",20,0,null,null,0,""]
["Installationer, Miljøklasse B. (20-30 m2) - SRO","stk.",10,0,null,null,0,""]
["Overbygning","stk.",75,23,23,23,0,0]
["Overløbsbygværker - By",null,null,null,null,null,"",""]
["Kælder (< 7 m2) ","stk.",75,0,null,null,0,""]
["Kælder (7 - 20 m2) ","m2",75,0,null,null,0,""]
["Kælder (20 - 30 m2)","m2",75,0,null,null,0,""]
["Installationer (mindre end 7 m2)","stk.",20,{"$f":"12+6","v":18},18,18,0,0]
["Installationer, Miljøklasse A. (7-20 m2) - Mek/EL","stk.",20,0,null,null,0,""]
["Installationer, Miljøklasse A. (7-20 m2) - SRO","stk.",10,0,null,null,0,""]
["Installationer, Miljøklasse A. (20-30 m2) - Mek/EL","stk.",20,0,null,null,0,""]
["Installationer, Miljøklasse A. (20-30 m2) - SRO","stk.",10,0,null,null,0,""]
["Installationer, Miljøklasse B. (7-20 m2) - Mek/EL","stk.",20,0,null,null,0,""]
["Installationer, Miljøklasse B. (7-20 m2) - SRO","stk.",10,0,null,null,0,""]
["Installationer, Miljøklasse B. (20-30 m2) - Mek/EL","stk.",20,0,null,null,0,""]
["Installationer, Miljøklasse B. (20-30 m2) - SRO","stk.",10,0,null,null,0,""]
["Overbygning","stk.",75,6,6,6,0,0]
["Overløbsbygværker - City",null,null,null,null,null,"",""]
["Kælder (< 7 m2) ","stk.",75,0,null,null,0,""]
["Kælder (7 - 20 m2) ","m2",75,0,null,null,0,""]
["Kælder (20 - 30 m2)","m2",75,0,null,null,0,""]
["Installationer (mindre end 7 m2)","stk.",20,0,null,null,0,""]
["Installationer, Miljøklasse A. (7-20 m2) - Mek/EL","stk.",20,0,null,null,0,""]
["Installationer, Miljøklasse A. (7-20 m2) - SRO","stk.",10,0,null,null,0,""]
["Installationer, Miljøklasse A. (20-30 m2) - Mek/EL","stk.",20,0,null,null,0,""]
["Installationer, Miljøklasse A. (20-30 m2) - SRO","stk.",10,0,null,null,0,""]
["Installationer, Miljøklasse B. (7-20 m2) - Mek/EL","stk.",20,0,null,null,0,""]
["Installationer, Miljøklasse B. (7-20 m2) - SRO","stk.",10,0,null,null,0,""]
["Installationer, Miljøklasse B. (20-30 m2) - Mek/EL","stk.",20,0,null,null,0,""]
["Installationer, Miljøklasse B. (20-30 m2) - SRO","stk.",10,0,null,null,0,""]
["Overbygning (efter beliggenhed) ","stk.",75,0,null,null,0,""]
["Overløbsbygværker - Indre city",null,null,null,null,null,"",""]
["Kælder (< 7 m2) ","stk.",75,0,null,null,0,""]
["Kælder (7 - 20 m2) ","m2",75,0,null,null,0,""]
["Kælder (20 - 30 m2)","m2",75,0,null,null,0,""]
["Installationer (mindre end 7 m2)","stk.",20,0,null,null,0,""]
["Installationer, Miljøklasse A. (7-20 m2) - Mek/EL","stk.",20,0,null,null,0,""]
["Installationer, Miljøklasse A. (7-20 m2) - SRO","stk.",10,0,null,null,0,""]
["Installationer, Miljøklasse A. (20-30 m2) - Mek/EL","stk.",20,0,null,null,0,""]
["Installationer, Miljøklasse A. (20-30 m2) - SRO","stk.",10,0,null,null,0,""]
["Installationer, Miljøklasse B. (7-20 m2) - Mek/EL","stk.",20,0,null,null,0,""]
["Installationer, Miljøklasse B. (7-20 m2) - SRO","stk.",10,0,null,null,0,""]
["Installationer, Miljøklasse B. (20-30 m2) - Mek/EL","stk.",20,0,null,null,0,""]
["Installationer, Miljøklasse B. (20-30 m2) - SRO","stk.",10,0,null,null,0,""]
["Overbygning","stk.",75,0,null,null,0,""]
["Forsinkelsesbassiner - Land",null,null,null,null,null,"",""]
["Forsinkelsesbassiner, lukkede uden automatisk rensning og SRO (mindre end 1.000 m3)","m³",50,0,{"$f":"7295-E249","v":3445},3445,"Ny data",0,"Faldet ud i sidste indberetning 2022"]
["Forsinkelsesbassiner, lukkede med automatisk rensning og SRO (mindre end 1.000 m3) - Konstruktioner","m³",75,0,3850,3850,"Ny data",0,"Faldet ud i sidste indberetning 2022"]
["Forsinkelsesbassiner, lukkede med automatisk rensning og SRO (mindre end 1.000 m3) - Mek/EL","m³",20,0,3850,3850,"Ny data",0,"Faldet ud i sidste indberetning 2022"]
["Forsinkelsesbassiner, lukkede med automatisk rensning og SRO (mindre end 1.000 m3) - SRO ","m³",10,0,3850,3850,"Ny data",0,"Faldet ud i sidste indberetning 2022"]
["Forsinkelsesbassiner, lukkede (1.000-4.000 m3) - Konstruktioner","m³",75,0,null,null,{"$f":"IF(D252=\"\",IF(E252>0,\"Ny data\",IF(E252=\"\",\"\",0)),IF(D252=0,IF(E252=0,0,\"Ny data\"),(E252-D252)/D252))","v":0},"","Faldet ud i sidste indberetning 2022"]
["Forsinkelsesbassiner, lukkede (1.000-4.000 m3) - Mek/EL","m³",20,0,null,null,0,"","Faldet ud i sidste indberetning 2022"]
["Forsinkelsesbassiner, lukkede (1.000-4.000 m3) - SRO","m³",10,0,null,null,0,"","Faldet ud i sidste indberetning 2022"]
["Forsinkelsesbassiner, lukkede (4.000-10.000 m3) - Konstruktioner","m³",75,0,null,null,0,""]
["Forsinkelsesbassiner, lukkede (4.000-10.000 m3) - Mek/EL","m³",20,0,null,null,0,""]
["Forsinkelsesbassiner, lukkede (4.000-10.000 m3) - SRO","m³",10,0,null,null,0,""]
["Forsinkelsesbassiner, lukkede (større end 10.000 m3) - Konstruktioner","m³",75,0,null,null,0,""]
["Forsinkelsesbassiner, lukkede (større end 10.000 m3) - Mek/EL","m³",20,0,null,null,{"$f":"IF(D259=\"\",IF(E259>0,\"Ny data\",IF(E259=\"\",\"\",0)),IF(D259=0,IF(E259=0,0,\"Ny data\"),(E259-D259)/D259))","v":0},{"$f":"IF(E259=\"\",IF(F259>0,\"Ny data\",IF(F259=\"\",\"\",0)),IF(E259=0,IF(F259=0,0,\"Ny data\"),(F259-E259)/E259))","v":""}]
["Forsinkelsesbassiner, lukkede (større end 10.000 m3) - SRO","m³",10,0,null,null,0,""]
["Forsinkelsesbassiner - By",null,null,null,null,null,"",""]
["Forsinkelsesbassiner, lukkede uden automatisk rensning og SRO (mindre end 1.000 m3)","m³",50,0,{"$f":"11078-7025","v":4053},{"$f":"11078-7025","v":4053},"Ny data",0,"Faldet ud i sidste indberetning 2022"]
["Forsinkelsesbassiner, lukkede med automatisk rensning og SRO (mindre end 1.000 m3) - Konstruktioner","m³",75,0,7025,7025,"Ny data",0,"Faldet ud i sidste indberetning 2022"]
["Forsinkelsesbassiner, lukkede med automatisk rensning og SRO (mindre end 1.000 m3) - Mek/EL","m³",20,0,7025,7025,"Ny data",0,"Faldet ud i sidste indberetning 2022"]
["Forsinkelsesbassiner, lukkede med automatisk rensning og SRO (mindre end 1.000 m3) - SRO ","m³",10,0,7025,7025,"Ny data",0,"Faldet ud i sidste indberetning 2022"]
["Forsinkelsesbassiner, lukkede (1.000-4.000 m3) - Konstruktioner","m³",75,0,null,null,0,""]
["Forsinkelsesbassiner, lukkede (1.000-4.000 m3) - Mek/EL","m³",20,0,null,null,0,""]
["Forsinkelsesbassiner, lukkede (1.000-4.000 m3) - SRO","m³",10,0,null,null,0,""]
["Forsinkelsesbassiner, lukkede (4.000-10.000 m3) - Konstruktioner","m³",75,0,null,null,0,""]
["Forsinkelsesbassiner, lukkede (4.000-10.000 m3) - Mek/EL","m³",20,0,null,null,0,""]
["Forsinkelsesbassiner, lukkede (4.000-10.000 m3) - SRO","m³",10,0,null,null,0,""]
["Forsinkelsesbassiner, lukkede (større end 10.000 m3) - Konstruktioner","m³",75,0,null,null,0,""]
["Forsinkelsesbassiner, lukkede (større end 10.000 m3) - Mek/EL","m³",20,0,null,null,0,""]
["Forsinkelsesbassiner, lukkede (større end 10.000 m3) - SRO","m³",10,0,null,null,0,""]
["Forsinkelsesbassiner - City",null,null,null,null,null,"",""]
["Forsinkelsesbassiner, lukkede uden automatisk rensning og SRO (mindre end 1.000 m3)","m³",50,0,null,null,0,""]
["Forsinkelsesbassiner, lukkede med automatisk rensning og SRO (mindre end 1.000 m3) - Konstruktioner","m³",75,0,null,null,0,""]
["Forsinkelsesbassiner, lukkede med automatisk rensning og SRO (mindre end 1.000 m3) - Mek/EL","m³",20,0,null,null,0,""]
["Forsinkelsesbassiner, lukkede med automatisk rensning og SRO (mindre end 1.000 m3) - SRO ","m³",10,0,null,null,0,""]
["Forsinkelsesbassiner, lukkede (1.000-4.000 m3) - Konstruktioner","m³",75,0,null,null,0,""]
["Forsinkelsesbassiner, lukkede (1.000-4.000 m3) - Mek/EL","m³",20,0,null,null,0,""]
["Forsinkelsesbassiner, lukkede (1.000-4.000 m3) - SRO","m³",10,0,null,null,0,""]
["Forsinkelsesbassiner, lukkede (4.000-10.000 m3) - Konstruktioner","m³",75,0,null,null,0,""]
["Forsinkelsesbassiner, lukkede (4.000-10.000 m3) - Mek/EL","m³",20,0,null,null,0,""]
["Forsinkelsesbassiner, lukkede (4.000-10.000 m3) - SRO","m³",10,0,null,null,0,""]
["Forsinkelsesbassiner, lukkede (større end 10.000 m3) - Konstruktioner","m³",75,0,null,null,0,""]
["Forsinkelsesbassiner, lukkede (større end 10.000 m3) - Mek/EL","m³",20,0,null,null,0,""]
["Forsinkelsesbassiner, lukkede (større end 10.000 m3) - SRO","m³",10,0,null,null,0,""]
["Forsinkelsesbassiner - Indre city",null,null,null,null,null,"",""]
["Forsinkelsesbassiner, lukkede uden automatisk rensning og SRO (mindre end 1.000 m3)","m³",50,0,null,null,0,""]
["Forsinkelsesbassiner, lukkede med automatisk rensning og SRO (mindre end 1.000 m3) - Konstruktioner","m³",75,0,null,null,0,""]
["Forsinkelsesbassiner, lukkede med automatisk rensning og SRO (mindre end 1.000 m3) - Mek/EL","m³",20,0,null,null,0,""]
["Forsinkelsesbassiner, lukkede med automatisk rensning og SRO (mindre end 1.000 m3) - SRO ","m³",10,0,null,null,0,""]
["Forsinkelsesbassiner, lukkede (1.000-4.000 m3) - Konstruktioner","m³",75,0,null,null,0,""]
["Forsinkelsesbassiner, lukkede (1.000-4.000 m3) - Mek/EL","m³",20,0,null,null,0,""]
["Forsinkelsesbassiner, lukkede (1.000-4.000 m3) - SRO","m³",10,0,null,null,0,""]
["Forsinkelsesbassiner, lukkede (4.000-10.000 m3) - Konstruktioner","m³",75,0,null,null,0,""]
["Forsinkelsesbassiner, lukkede (4.000-10.000 m3) - Mek/EL","m³",20,0,null,null,0,""]
["Forsinkelsesbassiner, lukkede (4.000-10.000 m3) - SRO","m³",10,0,null,null,0,""]
["Forsinkelsesbassiner, lukkede (større end 10.000 m3) - Konstruktioner","m³",75,0,null,null,0,""]
["Forsinkelsesbassiner, lukkede (større end 10.000 m3) - Mek/EL","m³",20,0,null,null,0,""]
["Forsinkelsesbassiner, lukkede (større end 10.000 m3) - SRO","m³",10,0,null,null,0,""]
["Sparebassin/Laguner/Jordbassiner - Land",null,null,null,null,null,"",""]
["Jordbassin Klasse A og B","m³",50,22033,27520,27520,0.24903553760268687,0,"opdatering af by og land"]
["Indløb-/udløbsarrangement","stk.",75,27,27,27,0,0]
["Andre bygninger (tekniske installationer, målere mv.)","m2",75,0,0,0,0,0]
["Sparebassin/Laguner/Jordbassiner - By",null,null,null,null,null,"",""]
["Jordbassin Klasse A og B","m³",50,28737,22132,22132,-0.2298430594703692,0,"opdatering af by og land"]
["Indløb-/udløbsarrangement","stk.",75,32,32,32,0,0]
["Andre bygninger (tekniske installationer, målere mv.)","m2",75,0,0,0,0,0]
["Sparebassin/Laguner/Jordbassiner - City",null,null,null,null,null,"",""]
["Jordbassin Klasse A og B","m³",50,0,null,null,0,""]
["Indløb-/udløbsarrangement","stk.",75,0,null,null,0,""]
["Andre bygninger (tekniske installationer, målere mv.)","m2",75,0,null,null,0,""]
["Sparebassin/Laguner/Jordbassiner - Indre city",null,null,null,null,null,"",""]
["Jordbassin Klasse A og B","m³",50,0,null,null,0,""]
["Indløb-/udløbsarrangement","stk.",75,0,null,null,0,""]
["Andre bygninger (tekniske installationer, målere mv.)","m2",75,0,null,null,0,""]

{"sheet":"Fællesfunktionsanlæg","index":2,"n_rows":13,"n_cols":9,"rows_kept":13,"cut":false,"hidden":false,"merged":[[0,0,1,0],[0,1,1,1],[0,2,1,2],[0,3,1,3],[0,8,1,8],[0,4,1,4],[0,5,1,5],[0,6,1,6],[0,7,1,7]]}
["Fællesfunktionsanlæg","Enhed","Standard-levetid","Samlet mængde per 31/12-2022","Samlet mængde per 31/12-2023","Samlet mængde per 31/12-2024","Afvigelse 2022-2023","Afvigelse 2023-2024","Bemærkninger"]
[]
["Andre",null,null,null,null,null,{"$f":"IF(D3=\"\",IF(E3>0,\"Ny data\",IF(E3=\"\",\"\",0)),IF(D3=0,IF(E3=0,0,\"Ny data\"),(E3-D3)/D3))","v":""},{"$f":"IF(E3=\"\",IF(F3>0,\"Ny data\",IF(F3=\"\",\"\",0)),IF(E3=0,IF(F3=0,0,\"Ny data\"),(F3-E3)/E3))","v":""}]
["Administrationbygninger","m2",75,4615,615,615,-0.86673889490790901,0,"fejl i tidligere - en en fordelingsnøgle"]
["Arbejdsplads og kontor","stk.",5,31,31,31,0,0]
["Køretøjer, personbil","stk.",5,5,5,5,0,0]
["Køretøjer, små lastvogne (< 3.500 kg.)","stk.",5,5,5,5,0,0]
["Køretøjer, store lastvogne (> 3.500 kg.)","stk.",5,0,0,0,0,0]
["Køretøjer, entreprenørmaskiner","stk.",5,0,0,0,0,0]
["Slamsugere","stk.",5,0,0,0,0,0]
["Værksteder, garager","m2",75,327,327,327,0,0]
["Solcelleanlæg eksl. Inverter","kWp",25,0,0,0,0,0]
["Inverter til solcelleanlæg","kWp",10,0,0,0,0,0]